[Event "Canary Islands-ch Veterans 2019"]
[Site "La Palma"]
[Date "2019.05.04"]
[Round "4.2"]
[White "Gonzalez Ortega, Jose Miguel"]
[Black "Rodriguez Melian, Jose Luis"]
[Result "0-1"]
[ECO "A48"]
[WhiteElo "1733"]
[BlackElo "2076"]
[Annotator "NA RC"]
[PlyCount "102"]
[EventDate "2019.05.02"]
[EventType "swiss"]
[EventCountry "ESP"]
[SourceTitle "playchess.com"]
[Source "ChessBase"]
[SourceQuality "1"]
[TimeControl "5400+30"]

1. d4 {[%emt 0:01:49]} Nf6 {[%emt 0:00:00]} 2. Nf3 {[%emt 0:00:18]} g6 {[%emt 0:00:00]} 3. Bg5 {[%emt 0:00:34]} Bg7 {[%emt 0:00:00]} 4. Bxf6 {[%emt 0:00:53]} Bxf6 {[%emt 0:00:00]} 5. e3 {[%emt 0:00:08]} c5 {[%emt 0:01:35]} (5... O-O 6. Nbd2 d5 7. Bd3 c5 8. c3 Nd7 9. O-O e5 10. dxe5 Nxe5 11. Nxe5 Bxe5 12. Nf3 Bg7 {0-1 (42) Pankov,G (2404)-Kryakvin,D (2529) Minsk 2015}) 6. c3 {[%emt 0:00:22] A48: 1 d4 Nf6 2 Nf3 g6: Torre, London and Colle Systems} Qb6 {[%emt 0:03:08]} 7. Qb3 $146 {[%emt 0:00:40]} ({Predecessor:} 7. Qc2 d6 8. Nbd2 O-O 9. Bd3 Bd7 10. O-O cxd4 11. Nxd4 Nc6 12. Qb3 Qxb3 13. N2xb3 {0-1 (76) Canseco Arenas,A (1721)-Rodriguez Bachiller,L (1771) Madrid 2014}) 7... Nc6 {[%emt 0:01:54]} 8. Nbd2 {[%emt 0:01:51]} Qxb3 {[%emt 0:01:52]} 9. axb3 {[%emt 0:00:06]} cxd4 {[%emt 0:00:40]} 10. exd4 {[%emt 0:00:20]} d5 {[%emt 0:01:16]} 11. Bb5 {[%emt 0:00:34]} Bd7 {[%emt 0:08:04]} 12. b4 {[%emt 0:02:03]} Kd8 {[%emt 0:23:10]} 13. O-O {[%emt 0:02:59]} Nb8 {[%emt 0:04:50]} 14. Ba4 {[%emt 0:02:52]} Kc7 {[%emt 0:04:25]} 15. Rfe1 {[%emt 0:00:30]} Bxa4 {[%emt 0:01:07]} 16. Rxa4 {[%emt 0:00:11]} Nd7 {[%emt 0:02:14]} 17. Nb3 {[%emt 0:00:56]} Nb6 {[%emt 0:12:49]} 18. Ra2 {[%emt 0:01:31]} Nc4 {[%emt 0:04:11]} 19. Na5 {[%emt 0:01:09]} Nd6 {[%emt 0:02:47]} 20. Ne5 {[%emt 0:00:41]} e6 {[%emt 0:02:10]} 21. f3 {[%emt 0:00:38]} Bxe5 {[%emt 0:02:05]} 22. dxe5 {[%emt 0:03:09]} Nb5 {[%emt 0:03:34]} 23. Nb3 {[%emt 0:00:42]} Rhd8 {[%emt 0:00:22]} 24. Rd1 {[%emt 0:01:46]} Rac8 {[%emt 0:01:29]} 25. Nd4 {[%emt 0:00:35]} Nxd4 {[%emt 0:00:09]} 26. Rxd4 {[%emt 0:00:13]} Kb6 {[%emt 0:00:09]} 27. Kf2 {[%emt 0:00:21]} Rc4 {[%emt 0:00:50]} 28. Ke3 {[%emt 0:01:18]} Rdc8 {[%emt 0:00:07]} 29. Rd2 {[%emt 0:08:15]} h5 {[%emt 0:00:21]} 30. h3 {[%emt 0:01:08]} h4 {[%emt 0:00:09]} 31. Ra1 {[%emt 0:00:30]} Rh8 {[%emt 0:02:59]} 32. Rad1 {[%emt 0:01:15]} Rh5 {[%emt 0:00:32]} 33. f4 {[%emt 0:00:48] [#]} (33. Kf2 $17) 33... Re4+ $1 {[%emt 0:00:03]} 34. Kf3 {[%emt 0:00:45]} Rf5 {[%emt 0:00:05]} 35. g3 {[%emt 0:01:07]} hxg3 {[%emt 0:00:04]} 36. Kxg3 {[%emt 0:00:23]} Rexf4 {[%emt 0:00:19]} 37. Re2 {[%emt 0:02:33]} Kb5 {[%emt 0:01:43]} 38. Re3 {[%emt 0:00:56]} a6 {[%emt 0:00:59]} 39. Ra1 {[%emt 0:00:28]} b6 {[%emt 0:01:55]} 40. Rd1 {[%emt 0:00:54]} Re4 {[%emt 0:01:14]} 41. Rxe4 {[%emt 0:02:20]} dxe4 {[%emt 0:00:02]} 42. Rd4 {[%emt 0:00:50]} Rxe5 {[%emt 0:00:07]} 43. Kf4 {[%emt 0:00:17]} f6 {[%emt 0:00:04]} 44. Ke3 {[%emt 0:00:21]} f5 {[%emt 0:00:09]} 45. Kf4 {[%emt 0:01:05]} e3 {[%emt 0:00:30]} 46. Rd1 {[%emt 0:01:40]} Re4+ {[%emt 0:00:28]} 47. Kg5 {[%emt 0:00:15]} e2 {[%emt 0:00:29]} 48. Re1 $19 {[%emt 0:00:18]} f4 {[%emt 0:00:20]} 49. Kg4 {[%emt 0:00:36]} e5 {[%emt 0:00:11]} 50. h4 {[%emt 0:00:29]} Re3 {[%emt 0:00:30]} 51. b3 {[%emt 0:00:40]} Rg3# {[%emt 0:00:28]} 0-1

[Event "Canary Islands-ch Veterans 2019"]
[Site "La Palma"]
[Date "2019.05.04"]
[Round "5.1"]
[White "Rodriguez Melian, Jose Luis"]
[Black "Galvan Sarmiento, Jose Luis"]
[Result "0-1"]
[ECO "D79"]
[WhiteElo "2076"]
[BlackElo "1909"]
[Annotator "NA RC"]
[PlyCount "128"]
[EventDate "2019.05.02"]
[EventType "swiss"]
[EventCountry "ESP"]
[SourceTitle "playchess.com"]
[Source "ChessBase"]
[SourceQuality "1"]
[TimeControl "5400+30"]

1. d4 {[%emt 0:00:00]} d5 {[%emt 0:00:00]} 2. c4 {[%emt 0:00:00]} c6 {[%emt 0:00:00]} 3. Nf3 {[%emt 0:00:00]} g6 {[%emt 0:00:21]} 4. g3 {[%emt 0:00:23]} Bg7 {[%emt 0:00:21]} 5. Bg2 {[%emt 0:00:07]} Nf6 {[%emt 0:00:10]} 6. O-O {[%emt 0:00:09]} O-O {[%emt 0:00:51]} 7. cxd5 {[%emt 0:04:19]} cxd5 {[%emt 0:00:09]} 8. Ne5 {[%emt 0:00:08]} Nbd7 {[%emt 0:03:08]} 9. Nc3 {[%emt 0:00:47]} e6 {[%emt 0:00:12]} 10. f4 {[%emt 0:07:45]} a6 {[%emt 0:05:30] D79: Fianchetto Grünfeld: Symmetrical Variation (6 0-0 c6 7 cxd5 cxd5)} 11. e3 {[%emt 0:03:36]} (11. a4 b6 12. Qb3 Bb7 13. Bd2 Rb8 14. Rac1 Ne8 15. Na2 a5 16. Nc3 Nd6 17. Nb5 Nxe5 18. dxe5 Nxb5 19. Qxb5 {0-1 (54) Ruck,R (2566)-Kozul,Z (2619) Slovenia 2016}) 11... Ne8 $146 {[%emt 0:01:47]} ({Predecessor:} 11... b5 12. b4 Bb7 13. a4 Qe7 14. Bd2 Nxe5 15. fxe5 Ne4 16. Nxe4 dxe4 17. Qb1 Rfd8 18. Rf2 {1-0 (32) Lesiege,A (2370)-Lacroix,S Quebec 1991}) 12. b3 {[%emt 0:01:58]} f6 {[%emt 0:00:33]} 13. Nd3 {[%emt 0:00:13]} Nb8 {[%emt 0:05:24]} 14. Ba3 {[%emt 0:13:29]} Rf7 {[%emt 0:00:13]} 15. g4 {[%emt 0:03:21]} Nc7 {[%emt 0:00:58]} 16. Rc1 {[%emt 0:06:44]} Nc6 {[%emt 0:00:37]} 17. Na4 {[%emt 0:01:07]} Nb5 {[%emt 0:01:19]} 18. Bc5 {[%emt 0:00:47]} Bf8 {[%emt 0:02:14]} 19. Nb6 {[%emt 0:09:38]} Rb8 {[%emt 0:02:46]} 20. f5 {[%emt 0:00:09]} Bxc5 {[%emt 0:04:12]} 21. dxc5 {[%emt 0:00:06]} Nc7 {[%emt 0:02:51]} 22. Nf4 {[%emt 0:04:07]} exf5 {[%emt 0:01:01]} 23. Nxc8 {[%emt 0:02:25]} Rxc8 {[%emt 0:01:44]} 24. gxf5 {[%emt 0:00:09]} Ne7 {[%emt 0:07:03]} 25. fxg6 {[%emt 0:04:01]} hxg6 {[%emt 0:00:19]} 26. Qg4 {[%emt 0:05:46]} f5 {[%emt 0:08:12]} 27. Qg5 {[%emt 0:03:17]} Rg7 {[%emt 0:00:18]} 28. Rcd1 {[%emt 0:04:44]} Qd7 {[%emt 0:02:29]} 29. Qf6 {[%emt 0:01:20]} Qc6 {[%emt 0:00:10]} 30. Qd6 {[%emt 0:00:13]} Ne8 {[%emt 0:01:02]} 31. Qe5 {[%emt 0:07:08]} Qf6 {[%emt 0:00:20]} 32. Qd4 {[%emt 0:01:25]} Qxd4 {[%emt 0:02:31]} 33. Rxd4 {[%emt 0:00:16]} Nf6 {[%emt 0:02:02]} 34. Nxd5 {[%emt 0:01:10]} Ng4 {[%emt 0:02:43]} 35. h3 {[%emt 0:00:37]} Nh6 {[%emt 0:01:30]} 36. b4 {[%emt 0:01:04]} (36. Nf6+ $142 Kf7 37. Ne4) 36... Nc6 {[%emt 0:00:33]} 37. Nf6+ {[%emt 0:01:55]} Kf7 {[%emt 0:00:39]} (37... Kh8 $142) 38. Bxc6 {[%emt 0:00:05]} Rxc6 {[%emt 0:00:45]} 39. Nd7 {[%emt 0:00:25]} Ke8 {[%emt 0:01:26]} (39... Re6 $142) 40. Rfd1 {[%emt 0:01:30]} Re7 {[%emt 0:01:14]} 41. Kf2 {[%emt 0:00:00]} Rce6 {[%emt 0:00:36]} 42. R1d3 {[%emt 0:01:19]} f4 {[%emt 0:00:26]} 43. e4 {[%emt 0:00:01]} g5 {[%emt 0:01:04]} 44. e5 {[%emt 0:03:23]} ({White should try} 44. Rd2 $16) 44... Nf5 {[%emt 0:01:01]} 45. Nf6+ {[%emt 0:01:08]} Kf7 {[%emt 0:00:28]} 46. Rd7 {[%emt 0:02:18]} Rxe5 {[%emt 0:00:22]} 47. Rxe7+ {[%emt 0:00:41]} Rxe7 {[%emt 0:00:58]} 48. Nd5 {[%emt 0:02:04]} Re5 {[%emt 0:02:33]} 49. Nb6 {[%emt 0:00:53]} Ne3 {[%emt 0:01:24]} 50. Nc8 {[%emt 0:00:56]} Kg6 {[%emt 0:03:53]} 51. Nd6 {[%emt 0:00:18]} (51. Rd6+ $11 {keeps the balance.} Kf5 52. Rd3) 51... Re7 $1 {[%emt 0:00:17]} 52. Kf3 {[%emt 0:01:42]} Kh5 {[%emt 0:00:12]} (52... Nc2 $17 53. Kf2 Rh7) 53. Ne4 {[%emt 0:00:39]} Nc2 {[%emt 0:01:33]} 54. Rd8 $2 {[%emt 0:01:07]} (54. Rd1 $11) 54... Ne1+ {[%emt 0:00:30]} 55. Kf2 {[%emt 0:00:59]} Rxe4 {[%emt 0:00:11]} 56. Rd1 {[%emt 0:00:01]} Nc2 {[%emt 0:00:37]} 57. Rd7 {[%emt 0:00:29]} Nxb4 {[%emt 0:00:30]} 58. Rxb7 {[%emt 0:00:46]} Nd3+ {[%emt 0:00:26] Double Attack} 59. Kf3 {[%emt 0:01:07]} Re3+ {[%emt 0:00:09]} 60. Kg2 {[%emt 0:00:02]} f3+ {[%emt 0:00:57]} 61. Kg3 {[%emt 0:00:26]} f2+ {[%emt 0:00:09]} 62. Kg2 {[%emt 0:00:12]} Re1 {[%emt 0:00:30] Decoy} 63. Rf7 {[%emt 0:00:07]} f1=Q+ {[%emt 0:00:24]} 64. Rxf1 {[%emt 0:00:03]} Rxf1 {[%emt 0:00:16]} 0-1

[Event "Canary Islands-ch Veterans 2019"]
[Site "La Palma"]
[Date "2019.05.04"]
[Round "5.2"]
[White "Gutierrez Perez, Jose"]
[Black "Garcia De La Banda, Francisco"]
[Result "0-1"]
[ECO "E21"]
[WhiteElo "1958"]
[BlackElo "1872"]
[Annotator "NA RC"]
[PlyCount "108"]
[EventDate "2019.05.02"]
[EventType "swiss"]
[EventCountry "ESP"]
[SourceTitle "playchess.com"]
[Source "ChessBase"]
[SourceQuality "1"]
[TimeControl "5400+30"]

1. d4 {[%emt 0:00:00]} Nf6 {[%emt 0:01:11]} 2. c4 {[%emt 0:01:45]} e6 {[%emt 0:00:41]} 3. Nf3 {[%emt 0:02:16]} b6 {[%emt 0:00:09]} 4. Nc3 {[%emt 0:00:15]} Bb4 {[%emt 0:00:19]} 5. Qc2 {[%emt 0:03:40]} Bb7 {[%emt 0:00:08]} 6. a3 {[%emt 0:01:44]} Bxc3+ {[%emt 0:00:04]} 7. Qxc3 {[%emt 0:00:38]} h6 {[%emt 0:02:24] E21: Nimzo-Indian: 4 Nf3} (7... O-O 8. e3 d5 9. b3 Nbd7 10. Be2 c5 11. O-O Rc8 12. Bb2 Ne4 13. Qc2 cxd4 14. exd4 Nd6 15. Nd2 Qf6 16. Rac1 Nf5 17. Qd3 {½-½ (63) Yu,Y (2751)-Kryvoruchko,Y (2689) Riadh 2017}) 8. b4 {[%emt 0:00:56]} a5 $146 {[%emt 0:00:07]} ({Predecessor:} 8... d6 9. Bb2 Nbd7 10. e3 Ne4 11. Qc2 O-O 12. Bd3 f5 13. O-O Qe7 14. Rac1 Ng5 15. Nxg5 Qxg5 {1-0 (45) Abramovic,D (2138)-Vesovic,N (2009) Podgorica 2010}) 9. b5 {[%emt 0:02:56]} d6 {[%emt 0:00:55]} 10. Nd2 {[%emt 0:00:42]} Nbd7 {[%emt 0:00:27]} 11. a4 {[%emt 0:04:09]} O-O {[%emt 0:00:27]} 12. f3 {[%emt 0:08:24]} Qe7 {[%emt 0:03:14]} 13. e4 {[%emt 0:00:53]} e5 {[%emt 0:00:11]} 14. d5 {[%emt 0:07:55]} g6 {[%emt 0:15:06]} 15. Nb3 {[%emt 0:01:27]} Kg7 {[%emt 0:00:03]} 16. Be3 {[%emt 0:01:09]} Ng8 {[%emt 0:01:16]} 17. g4 {[%emt 0:00:57]} Ndf6 {[%emt 0:07:05]} 18. O-O-O {[%emt 0:00:54]} Bc8 {[%emt 0:01:18]} 19. Be2 {[%emt 0:08:49]} Nh7 {[%emt 0:02:42]} 20. f4 {[%emt 0:08:03]} Nhf6 {[%emt 0:04:01]} 21. fxe5 {[%emt 0:03:53]} dxe5 {[%emt 0:00:33]} 22. Qc2 {[%emt 0:03:51]} Nxg4 {[%emt 0:01:11]} 23. Bxg4 {[%emt 0:03:12]} Bxg4 {[%emt 0:00:03]} 24. Rdf1 {[%emt 0:00:30]} Qa3+ {[%emt 0:02:21]} 25. Kb1 {[%emt 0:01:17]} Qxa4 {[%emt 0:00:22]} 26. Kb2 {[%emt 0:01:29]} Qb4 {[%emt 0:00:27]} 27. Bd2 {[%emt 0:01:32]} Qe7 {[%emt 0:00:46]} 28. Bc3 {[%emt 0:00:24]} Nf6 {[%emt 0:09:41]} 29. Qg2 {[%emt 0:04:37]} Bc8 {[%emt 0:03:04]} 30. Nd2 {[%emt 0:01:22]} Nh5 {[%emt 0:07:32]} 31. Rhg1 {[%emt 0:00:39]} Kh7 {[%emt 0:05:36]} 32. Rf2 {[%emt 0:06:19]} Nf4 {[%emt 0:03:09]} 33. Rxf4 {[%emt 0:00:12]} exf4 {[%emt 0:00:02]} 34. Qf3 {[%emt 0:01:16]} ({Better is} 34. Qf2) 34... Qh4 {[%emt 0:03:20]} 35. Qd3 {[%emt 0:03:35]} Bg4 {[%emt 0:02:56]} 36. Qd4 {[%emt 0:01:49]} (36. e5 {was worth a try.}) 36... f6 {[%emt 0:00:04]} 37. e5 {[%emt 0:00:41]} fxe5 {[%emt 0:01:15]} 38. Qxe5 {[%emt 0:00:05]} Rf7 {[%emt 0:00:03]} 39. Qd4 {[%emt 0:06:19]} Raf8 {[%emt 0:02:38]} 40. Rf1 {[%emt 0:03:43]} Qxh2 {[%emt 0:04:00]} 41. Rf2 {[%emt 0:00:37]} Qg1 {[%emt 0:00:03]} 42. c5 {[%emt 0:02:05]} bxc5 {[%emt 0:02:51]} 43. Qxc5 {[%emt 0:00:02]} a4 {[%emt 0:00:13]} 44. Bd4 {[%emt 0:01:50]} Qe1 {[%emt 0:03:36]} 45. Ka3 {[%emt 0:00:23]} Qe7 {[%emt 0:01:19]} 46. Qxe7 {[%emt 0:02:41]} Rxe7 {[%emt 0:00:01]} 47. Bc5 {[%emt 0:00:01]} Re3+ {[%emt 0:02:35]} 48. Bxe3 {[%emt 0:01:27]} fxe3 {[%emt 0:00:02] Discovered Attack} 49. Rxf8 {[%emt 0:00:04]} exd2 {[%emt 0:00:12]} 50. Rf1 {[%emt 0:00:03]} d1=Q {[%emt 0:00:14]} 51. Rxd1 {[%emt 0:00:01]} Bxd1 {[%emt 0:00:14]} 52. d6 {[%emt 0:00:25]} cxd6 {[%emt 0:00:07]} 53. b6 {[%emt 0:00:03]} Bf3 {[%emt 0:00:04]} 54. Kxa4 {[%emt 0:00:01]} h5 {[%emt 0:00:15]} 0-1

[Event "Canary Islands-ch Veterans 2019"]
[Site "La Palma"]
[Date "2019.05.05"]
[Round "6.1"]
[White "Galvan Sarmiento, Jose Luis"]
[Black "Gutierrez Perez, Jose"]
[Result "1/2-1/2"]
[ECO "D02"]
[WhiteElo "1909"]
[BlackElo "1958"]
[Annotator "NA"]
[PlyCount "76"]
[EventDate "2019.05.02"]
[EventType "swiss"]
[EventCountry "ESP"]
[SourceTitle "playchess.com"]
[Source "ChessBase"]
[SourceQuality "1"]
[TimeControl "5400+30"]

1. d4 {[%emt 0:00:00]} d5 {[%emt 0:00:00]} 2. Bf4 {[%emt 0:00:00]} Nf6 {[%emt 0:00:48]} 3. e3 {[%emt 0:00:00]} c6 {[%emt 0:00:28]} 4. Nd2 {[%emt 0:01:10]} Bg4 {[%emt 0:01:20]} 5. Ngf3 {[%emt 0:01:23]} e6 {[%emt 0:00:31]} 6. h3 {[%emt 0:00:40]} Bh5 {[%emt 0:00:42]} 7. c4 {[%emt 0:00:39]} Bd6 {[%emt 0:00:45]} 8. Bxd6 {[%emt 0:01:13]} Qxd6 {[%emt 0:00:03]} 9. Qb3 {[%emt 0:00:07]} Qe7 {[%emt 0:00:52]} 10. Bd3 {[%emt 0:00:58]} O-O {[%emt 0:06:30]} 11. O-O {[%emt 0:00:22]} dxc4 {[%emt 0:02:35]} 12. Bxc4 {[%emt 0:00:31]} a5 {[%emt 0:00:46]} 13. a4 {[%emt 0:01:21]} Na6 {[%emt 0:00:12]} 14. Ne5 {[%emt 0:03:18]} Nb4 {[%emt 0:01:04]} 15. Rfe1 {[%emt 0:04:30]} Bg6 {[%emt 0:03:21]} 16. Nxg6 {[%emt 0:00:30]} hxg6 {[%emt 0:00:07]} 17. Nf3 {[%emt 0:00:59]} Nd7 {[%emt 0:01:22]} 18. Rac1 {[%emt 0:01:56]} Nb6 {[%emt 0:05:11]} 19. Bf1 {[%emt 0:00:39]} Nd7 {[%emt 0:02:06]} 20. Red1 {[%emt 0:03:41]} Rad8 {[%emt 0:05:42]} 21. Nd2 {[%emt 0:02:33]} e5 {[%emt 0:00:45]} 22. Nc4 {[%emt 0:02:11]} exd4 {[%emt 0:15:47]} 23. exd4 {[%emt 0:00:15]} b6 {[%emt 0:05:59]} 24. Ne3 {[%emt 0:01:22]} Nf6 {[%emt 0:00:27]} 25. Nc4 {[%emt 0:03:09]} Nfd5 {[%emt 0:02:58]} 26. Ne5 {[%emt 0:00:17]} c5 {[%emt 0:00:03]} 27. Nf3 {[%emt 0:01:45]} cxd4 {[%emt 0:02:57]} 28. Nxd4 {[%emt 0:02:10]} Qf6 {[%emt 0:02:03]} 29. Qf3 {[%emt 0:06:12]} Nf4 {[%emt 0:04:05]} 30. Nb5 {[%emt 0:03:08]} g5 {[%emt 0:04:00]} 31. Nc3 {[%emt 0:01:37]} Qe5 {[%emt 0:05:09]} 32. Rxd8 {[%emt 0:00:08]} Rxd8 {[%emt 0:00:02]} 33. Rd1 {[%emt 0:00:15]} Qf6 {[%emt 0:00:03]} 34. Rc1 {[%emt 0:01:38]} Qe5 {[%emt 0:00:03]} 35. Rd1 Re8 {[%emt 0:00:06]} 36. Bb5 {[%emt 0:00:09]} Re7 37. Rd8+ {[%emt 0:00:04]} Kh7 {[%emt 0:00:01]} 38. Rd1 {[%emt 0:00:32]} Re8 1/2-1/2

[Event "Canary Islands-ch Veterans 2019"]
[Site "La Palma"]
[Date "2019.05.05"]
[Round "6.2"]
[White "Garcia De La Banda, Francisco"]
[Black "Fernandez Manrique, Agustin"]
[Result "0-1"]
[ECO "A01"]
[WhiteElo "1872"]
[BlackElo "2074"]
[Annotator "NA RC"]
[PlyCount "38"]
[EventDate "2019.05.02"]
[EventType "swiss"]
[EventCountry "ESP"]
[SourceTitle "playchess.com"]
[Source "ChessBase"]
[SourceQuality "1"]
[TimeControl "5400+30"]

1. b3 {[%emt 0:00:00]} e5 {[%emt 0:00:03]} 2. Bb2 {[%emt 0:00:00]} Nc6 {[%emt 0:00:07]} 3. e3 {[%emt 0:00:00]} Nf6 {[%emt 0:01:12]} 4. Bb5 {[%emt 0:00:24]} Bd6 {[%emt 0:00:40]} 5. Nc3 {[%emt 0:02:12]} a6 {[%emt 0:02:08]} 6. Bxc6 {[%emt 0:01:46]} dxc6 {[%emt 0:00:14]} 7. Nge2 {[%emt 0:00:24]} Qe7 {[%emt 0:02:46]} 8. O-O {[%emt 0:00:14]} e4 $15 {[%emt 0:03:53]} 9. f3 {[%emt 0:07:56]} exf3 {[%emt 0:06:13]} 10. Rxf3 {[%emt 0:00:10]} Bg4 {[%emt 0:06:22]} 11. Rf2 {[%emt 0:00:02]} Qe5 {[%emt 0:02:27]} 12. g3 {[%emt 0:03:08]} h5 {[%emt 0:00:55]} 13. Qf1 {[%emt 0:00:56]} h4 {[%emt 0:13:49]} 14. Nf4 {[%emt 0:05:24]} hxg3 {[%emt 0:00:42]} 15. hxg3 {[%emt 0:00:02]} O-O-O {[%emt 0:10:19]} 16. Qg2 {[%emt 0:07:30]} Rh6 {[%emt 0:09:42]} 17. Re1 {[%emt 0:05:58]} Rdh8 {[%emt 0:05:03]} 18. d4 {[%emt 0:01:18]} Qf5 {[%emt 0:00:56]} 19. e4 {[%emt 0:00:11]} Qh7 {[%emt 0:00:09]} 0-1